bitfinex/quotes_ETHUSD_20250411
["timestamp","ask_amount","ask_price","bid_price","bid_amount"]
[1744349401130,12.911,1549.1,1548.8,1.36876995]
[1744349401329,6.45592,1549.0,1548.8,1.36876995]
[1744349401534,12.91197,1549.0,1548.7,7.35597069]
[1744349402570,6.45592,1549.0,1548.7,7.35597069]
[1744349402771,12.91194,1549.0,1548.8,0.60093005]
[1744349402972,7.22919,1549.2,1548.8,0.60093005]
[1744349403172,0.7741074,1549.4,1549.2,6.45492]
[1744349403364,7.4e-06,1549.4,1549.1,0.7791]
[1744349403669,7.4e-06,1549.4,1549.2,0.60032221]
[1744349403848,6.4543474,1549.4,1549.2,0.60032221]
[1744349404047,6.45452,1549.3,1549.2,0.60032221]
[1744349404359,6.45452,1549.3,1549.1,0.60032221]
[1744349404935,6.4543474,1549.4,1549.1,7.05550221]
[1744349405170,6.4543474,1549.4,1549.1,7.88630274]
[1744349405372,7.4e-06,1549.4,1549.1,1.43112274]
[1744349405536,7.4e-06,1549.4,1549.3,6.45452]
[1744349405736,7.4e-06,1549.4,1549.2,7.83420221]
[1744349406151,7.4e-06,1549.4,1549.2,7.23388]
[1744349406356,7.4e-06,1549.4,1549.2,0.7791]
[1744349406695,7.4e-06,1549.4,1549.3,6.45452]
[1744349406997,7.4e-06,1549.4,1549.3,8.47264214]
[1744349407366,7.4e-06,1549.4,1549.3,9.25174214]
[1744349408600,7.4e-06,1549.4,1549.3,12.25174214]
[1744349410682,7.4e-06,1549.4,1549.3,12.80174214]
[1744349410858,7.4e-06,1549.4,1549.3,12.25174214]
[1744349411058,7.4e-06,1549.4,1549.3,12.80174214]
[1744349411289,7.4e-06,1549.4,1549.3,12.25174214]
[1744349413274,7.4e-06,1549.4,1549.3,16.98585277]
[1744349413460,7.4e-06,1549.4,1549.3,7.53133277]
[1744349413663,7.4e-06,1549.4,1549.3,5.33380711]
[1744349414075,7.4e-06,1549.4,1549.3,4.73411063]
[1744349414806,0.8187074,1549.4,1549.3,4.73411063]
[1744349415110,7.4e-06,1549.4,1549.2,7.21859]
[1744349415406,7.4e-06,1549.4,1549.3,0.721859]
[1744349415975,7.4e-06,1549.4,1549.3,7.176379]
[1744349418028,7.4e-06,1549.4,1549.3,7.34743017]
[1744349418427,7.4e-06,1549.4,1549.3,0.89291017]
[1744349419122,7.4e-06,1549.4,1549.3,0.17105117]
[1744349419323,7.4e-06,1549.4,1549.3,7.38957117]
[1744349419530,7.4e-06,1549.4,1549.3,10.81650171]
[1744349419825,7.4e-06,1549.4,1549.3,14.41553756]
[1744349420015,7.4e-06,1549.4,1549.3,13.86553756]
[1744349420325,7.4e-06,1549.4,1549.3,13.67395238]
[1744349422816,7.4e-06,1549.4,1549.3,10.67395238]
[1744349423245,7.4e-06,1549.4,1549.3,9.90995238]
[1744349423774,7.4e-06,1549.4,1549.3,9.90979842]
[1744349427528,6.4541174,1549.4,1549.3,0.76993306]
[1744349427727,6.4541174,1549.4,1549.3,0.17105117]
[1744349428332,7.4e-06,1549.4,1549.3,0.17105117]
[1744349429672,7.4e-06,1549.4,1549.3,7.22530392]
[1744349429976,7.4e-06,1549.4,1549.3,9.06672238]
[1744349433862,7.4e-06,1549.4,1549.3,15.94891458]
[1744349436196,7.4e-06,1549.4,1549.3,15.12671458]
[1744349437378,7.4e-06,1549.4,1549.3,9.06672238]
[1744349437795,7.4e-06,1549.4,1549.3,7.22530392]
[1744349438103,7.4e-06,1549.4,1549.3,0.77078392]
[1744349438475,7.4e-06,1549.4,1549.3,7.22530392]
[1744349440620,7.2165174,1549.4,1549.3,0.77078392]
[1744349440779,7.2165174,1549.4,1549.3,0.77308296]
[1744349441089,8.58354014,1549.4,1549.3,0.77308296]
[1744349441305,8.58354014,1549.4,1549.3,0.17105117]
[1744349441496,15.03801014,1549.4,1549.1,4.73411063]
[1744349441696,15.03801014,1549.4,1549.2,0.77489683]
[1744349442025,15.03801014,1549.4,1549.2,5.50900746]
[1744349442225,6.45452,1549.3,1549.2,5.50900746]
[1744349442436,6.45452,1549.3,1549.2,4.90700862]
[1744349443129,15.03806014,1549.4,1549.2,4.90700862]
[1744349443437,0.7624074,1549.4,1549.2,4.90700862]
[1744349443604,0.7624074,1549.4,1549.2,11.36170862]
[1744349444227,0.7624074,1549.4,1549.2,4.90700862]
[1744349444432,0.7624074,1549.4,1549.2,0.17289799]
[1744349444638,7.2165174,1549.4,1549.2,0.17289799]
[1744349444841,13.6708574,1549.4,1549.0,11.66591823]
[1744349445129,7.2165174,1549.4,1549.1,6.4552]
[1744349445327,7.2165174,1549.4,1549.2,0.17289799]
[1744349445533,7.2165174,1549.4,1549.2,0.60157911]
[1744349445735,7.2165174,1549.4,1549.3,0.17262161]
[1744349446390,0.7624074,1549.4,1549.1,17.64448063]
[1744349446590,0.7624074,1549.4,1549.3,0.17262161]
[1744349446792,0.7624074,1549.4,1549.2,13.68380484]
[1744349447031,0.7624074,1549.4,1549.3,0.17262161]
[1744349447335,0.7624074,1549.4,1549.3,0.77423068]
[1744349448221,0.7624074,1549.4,1549.3,7.22875068]
[1744349449598,7.4e-06,1549.4,1549.3,8.02444075]
[1744349450826,7.4e-06,1549.4,1549.3,12.26957129]
[1744349451610,7.4e-06,1549.4,1549.3,15.26957129]
[1744349452054,7.4e-06,1549.4,1549.3,21.32956349]
[1744349453419,7.4e-06,1549.4,1549.3,20.77956349]
[1744349453825,7.4e-06,1549.4,1549.3,17.90263295]
[1744349459060,7.4e-06,1549.4,1549.3,14.90263295]
[1744349460943,7.4e-06,1549.4,1549.3,21.32956349]
[1744349461260,7.4e-06,1549.4,1549.3,22.09327599]
[1744349461426,7.4e-06,1549.4,1549.3,21.32956349]
[1744349463147,7.4e-06,1549.4,1549.3,21.65133564]
[1744349464833,0.11,1550.4,1550.1,6.45119]
[1744349465131,0.11,1550.4,1550.0,6.45143]
[1744349465132,0.11,1550.4,1550.3,6.45036]
[1744349465338,0.11,1550.4,1550.3,13.11196127]
[1744349465547,0.11,1550.4,1550.3,13.27884783]
[1744349465729,0.8967,1550.4,1550.3,6.82848783]
[1744349465926,0.8967,1550.4,1550.3,13.27884783]
[1744349465927,0.11,1550.4,1550.3,13.27884783]
[1744349466157,0.11,1550.4,1550.3,15.16729169]
[1744349466382,0.11,1550.4,1550.3,18.52848021]
[1744349466585,0.4007674,1550.9,1550.8,10.14341054]
[1744349466791,0.4007674,1550.9,1550.8,19.36621467]
[1744349467141,7.4e-06,1550.9,1550.8,19.96782374]
[1744349467346,7.4e-06,1550.9,1550.8,22.46452788]
[1744349467646,7.4e-06,1550.9,1550.8,22.77939367]
[1744349468074,7.4e-06,1550.9,1550.8,22.22939367]
[1744349468257,7.4e-06,1550.9,1550.8,6.8244132]
[1744349468463,7.4e-06,1550.9,1550.8,12.67108413]
[1744349469203,7.4e-06,1550.9,1550.8,0.16281193]
[1744349469507,0.7867074,1550.9,1550.8,0.16281193]
[1744349469665,7.23516,1550.8,1550.4,6.44993]
[1744349470001,7.23516,1550.8,1550.5,6.44937]
[1744349470002,1.51021674,1550.8,1550.5,6.44937]
[1744349471204,0.7867,1550.7,1550.3,11.72192132]
[1744349471393,0.7867,1550.7,1550.4,6.44993]
[1744349471759,0.7867,1550.7,1550.5,6.44948]
[1744349472087,0.7867,1550.7,1550.3,6.93932798]
[1744349472088,7.23556,1550.7,1550.3,6.93932798]
[1744349472406,8.67629967,1550.7,1550.3,6.45033]
[1744349472757,6.44913,1550.6,1550.2,17.29370554]
[1744349473073,0.7679,1550.5,1550.2,17.29370554]
[1744349473590,0.7679,1550.5,1550.3,6.45014]
[1744349473793,14.40070674,1550.8,1550.3,2.05881322]
[1744349473998,14.40070674,1550.8,1550.4,6.44974]
[1744349474795,14.40070674,1550.8,1550.4,12.89943]
[1744349474996,14.40070674,1550.8,1550.4,6.44971]
[1744349475515,6.44935,1550.6,1550.2,12.5106622]
[1744349475790,6.45009,1550.4,1550.0,11.23436334]
[1744349475989,6.45009,1550.4,1550.1,6.45118]
[1744349476191,6.45009,1550.4,1550.1,6.92786097]
[1744349476395,6.45076,1550.3,1550.0,4.78296334]
[1744349476702,7.817621,1550.3,1550.0,4.78296334]
[1744349476901,6.45076,1550.3,1550.0,4.78296334]
[1744349477195,7.21785,1550.4,1550.0,17.68591334]
[1744349477598,7.21785,1550.4,1550.0,11.23437334]
[1744349477990,13.66803,1550.4,1550.0,11.23437334]
[1744349478186,6.45105,1550.2,1550.0,4.78296334]
[1744349478504,0.7679,1550.1,1550.0,4.78296334]
[1744349479074,0.7679,1550.1,1550.0,11.23457334]
[1744349479477,6.45042,1550.3,1550.0,11.23457334]
[1744349479478,0.7679,1550.3,1550.0,11.23457334]
[1744349479780,0.7679,1550.3,1550.0,6.45161]
[1744349480015,0.7679,1550.3,1549.9,13.38439302]
[1744349480016,9.231266,1550.3,1549.9,13.38439302]
[1744349480613,9.231266,1550.3,1549.9,6.45197]
[1744349480786,6.45091,1550.2,1549.9,6.45197]
[1744349481311,2.780816,1550.3,1550.0,0.15999388]
[1744349481514,3.72351674,1550.8,1550.0,0.15999388]
[1744349481515,0.7679,1550.5,1550.2,6.45078]
[1744349481715,0.7679,1550.5,1550.0,0.82118227]
[1744349481716,0.7679,1550.5,1550.1,12.90215]
[1744349481878,7.21745,1550.5,1550.3,0.15911301]
[1744349482083,7.21745,1550.5,1550.2,6.45063]
[1744349482084,0.7679,1550.5,1550.2,13.06261696]
[1744349482296,0.7679,1550.5,1550.4,0.1608651]
[1744349482496,1.489608,1550.5,1550.3,0.16114101]
[1744349482710,1.489608,1550.5,1550.4,0.1608651]
[1744349482909,7.939138,1550.5,1550.4,0.1608651]
[1744349483221,1.489608,1550.5,1550.4,0.1608651]
[1744349483422,1.489608,1550.5,1550.2,6.45062]
[1744349483610,1.489608,1550.5,1550.3,0.16114101]
[1744349484309,7.939198,1550.5,1550.3,0.16114101]
[1744349484723,0.7939198,1550.4,1550.3,0.16114101]
[1744349484907,8.0117598,1550.4,1550.3,0.16114101]
[1744349485090,7.21856,1550.3,1549.9,6.45197]
[1744349485289,6.45101,1550.2,1549.8,18.18309152]
[1744349485491,6.45101,1550.2,1550.0,0.16196896]
[1744349485692,7.21833,1550.3,1549.9,13.06618502]
[1744349486010,7.21833,1550.3,1550.0,0.16196896]
[1744349486323,15.11519598,1550.3,1550.0,0.16196896]
[1744349486726,8.66455598,1550.3,1550.0,0.16196896]
[1744349487583,15.11512598,1550.3,1550.0,0.16196896]
[1744349487784,7.21833,1550.3,1550.0,7.42136896]
[1744349488031,13.66891,1550.3,1550.0,0.16196896]
[1744349488195,6.45092,1550.2,1550.0,0.16196896]
[1744349488395,6.45092,1550.2,1549.8,14.20784818]
[1744349488585,7.21913,1550.1,1549.9,0.16224502]
[1744349488929,0.7679,1549.8,1549.6,11.5723499]
[1744349489101,0.7679,1549.8,1549.6,4.78296334]
[1744349490489,6.45286,1549.7,1549.6,4.78296334]
[1744349490686,6.45286,1549.7,1549.5,4.78296334]
[1744349490687,7.22117,1549.6,1549.5,4.78296334]
[1744349493473,7.22117,1549.6,1549.1,0.3364724]
[1744349493474,7.22284,1549.2,1549.1,0.3364724]
[1744349493677,6.45571,1549.1,1548.9,4.78296334]
[1744349494083,7.22288,1549.2,1548.9,4.78296334]
[1744349494373,6.4555,1549.1,1548.9,4.78296334]
[1744349495378,12.9111,1549.1,1548.9,4.78296334]
[1744349495891,7.22367,1549.0,1548.9,4.78296334]
[1744349496248,7.22367,1549.0,1548.9,4.95083311]
[1744349496453,7.22367,1549.0,1548.9,0.16786977]
[1744349496955,0.7679,1549.0,1548.6,7.26509]
[1744349497263,0.7679,1549.0,1548.6,7.26502]
[1744349497453,0.7679,1549.0,1548.7,0.89497786]
[1744349497663,13.1695,1549.1,1548.7,0.89497786]
[1744349497849,7.22288,1549.2,1548.7,7.35183786]
[1744349498047,0.7679,1549.2,1548.8,6.45631]
[1744349498247,13.67831,1549.2,1548.8,6.45631]
[1744349498564,13.67831,1549.2,1548.9,0.16792279]
[1744349498877,6.4555,1549.1,1548.8,0.73512879]
[1744349499076,6.4555,1549.1,1549.0,0.1676463]
[1744349499380,6.45577,1549.0,1548.9,0.16792279]
[1744349499578,6.45679,1548.8,1548.5,0.33654682]
[1744349499778,6.45679,1548.8,1548.4,10.7476445]
[1744349499779,12.91379,1548.8,1548.4,10.7476445]
[1744349499940,6.45804,1548.5,1548.2,0.8078]
[1744349500144,7.22594,1548.5,1548.2,2.16630324]
[1744349500446,13.68407,1548.5,1548.2,2.16630324]
[1744349500767,6.45829,1548.4,1548.1,7.1460998]
[1744349500947,7.22578,1548.5,1548.1,12.77735235]
[1744349501150,7.22509,1548.7,1548.3,7.26648]
[1744349501375,12.9153,1548.6,1548.3,0.8078]
[1744349501943,6.45746,1548.6,1548.3,0.8078]
[1744349502277,6.45746,1548.6,1548.3,7.26635]
[1744349502479,6.45746,1548.6,1548.3,8.638875]
[1744349502770,13.68225,1548.7,1548.3,8.638875]
[1744349502973,6.45758,1548.6,1548.3,2.180325]
[1744349503177,6.45802,1548.5,1548.1,13.84800728]
[1744349503675,6.45802,1548.5,1548.1,10.38844728]
[1744349504067,6.45749,1548.6,1548.3,0.7587]
[1744349504877,12.91517,1548.6,1548.2,6.45894]
[1744349505276,6.45793,1548.5,1548.2,1.76062573]
[1744349505463,6.45745,1548.6,1548.3,6.45855]
[1744349507349,6.45667,1548.8,1548.5,6.45771]
[1744349508579,6.45711,1548.7,1548.4,7.21694]
[1744349509780,12.91365,1548.8,1548.4,7.21682]
[1744349509990,6.45708,1548.7,1548.4,7.21682]
[1744349510788,6.45708,1548.7,1548.4,8.584368]
[1744349511364,6.45708,1548.7,1548.5,0.17130194]
[1744349512489,6.45667,1548.8,1548.5,0.17130194]
[1744349513049,12.91451,1548.7,1548.5,0.17130194]
[1744349513372,6.45744,1548.6,1548.5,0.17130194]
[1744349513692,6.45744,1548.6,1548.3,7.21366]
[1744349513979,6.45744,1548.6,1548.5,0.17188538]
[1744349514187,6.45744,1548.6,1548.4,0.17216209]
[1744349514388,6.45718,1548.7,1548.5,0.17188538]
[1744349514687,6.45718,1548.7,1548.3,7.21366]
[1744349514986,12.91446,1548.7,1548.6,0.1716087]
[1744349515155,12.91446,1548.7,1548.3,14.56974857]
[1744349515361,12.91446,1548.7,1548.6,0.1716087]
[1744349515553,12.91446,1548.7,1548.3,14.56959857]
[1744349515756,6.45718,1548.7,1548.6,0.1716087]
[1744349515955,6.45718,1548.7,1548.4,7.91507986]
[1744349516182,6.45718,1548.7,1548.6,0.17171478]
[1744349516486,6.45718,1548.7,1548.6,0.17176782]
[1744349516687,6.45718,1548.7,1548.4,7.91507986]
[1744349516888,6.45718,1548.7,1548.6,0.17176782]
[1744349517054,6.45718,1548.7,1548.5,0.17204451]
[1744349517501,13.667,1548.9,1548.5,7.43843695]
[1744349517677,13.66698,1548.9,1548.5,7.43843695]
[1744349517994,12.9136,1548.8,1548.5,0.98075695]
[1744349518196,0.7733,1548.6,1548.5,0.17204451]
[1744349518490,0.7733,1548.6,1548.1,9.9319922]
[1744349518491,6.45847,1548.4,1548.1,9.9319922]
[1744349518649,6.45847,1548.4,1548.2,0.59893112]
[1744349518852,6.45847,1548.4,1548.1,3.872]
[1744349519053,6.45847,1548.4,1548.1,5.551155]
[1744349519352,0.7733,1548.3,1548.1,4.779155]
[1744349520294,7.23199,1548.3,1548.2,0.60014573]
[1744349520997,7.23199,1548.3,1548.1,0.1]
[1744349521566,0.7733,1548.5,1548.1,0.1]
[1744349521764,6.45897,1548.3,1548.1,0.1]
[1744349522091,0.7733,1548.2,1548.1,0.1]
[1744349522597,13.69014,1548.4,1548.1,0.1]
[1744349522768,15.059154,1548.4,1548.1,0.1]
[1744349522973,6.45871,1548.3,1548.1,0.1]
[1744349523183,7.23241,1548.2,1548.1,0.1]
[1744349524286,13.93941,1548.2,1548.1,0.1]
[1744349524593,16.93941,1548.2,1548.1,0.1]
[1744349524796,19.279222,1548.2,1548.1,0.1]
[1744349524996,19.829222,1548.2,1548.1,0.1]
[1744349525297,22.70954188,1548.2,1548.1,0.1]
[1744349526172,28.86954188,1548.2,1548.1,0.1]
[1744349526368,29.34896076,1548.2,1548.1,0.1]
[1744349526701,28.79896076,1548.2,1548.1,0.1]
[1744349527058,29.34896076,1548.2,1548.1,0.1]
[1744349527749,28.79896076,1548.2,1548.1,0.1]
[1744349527957,29.34896076,1548.2,1548.1,0.1]
[1744349529574,0.7733,1547.5,1547.1,6.46367]
[1744349529898,6.4625,1547.4,1547.2,0.17781939]
[1744349530115,7.18608,1547.4,1547.2,0.17781939]
[1744349530254,7.18608,1547.4,1547.1,6.46367]
[1744349530460,7.18608,1547.4,1547.2,0.17819116]
[1744349530685,6.709,1547.6,1547.1,6.4637]
[1744349530961,6.709,1547.6,1547.4,6.46228]
[1744349531192,6.709,1547.6,1547.3,6.46252]
[1744349531495,13.17061,1547.6,1547.4,0.17795522]
[1744349531858,19.63247,1547.6,1547.2,7.23521]
[1744349532166,21.673047,1547.6,1547.3,0.18077032]
[1744349532566,6.46245,1547.4,1547.3,0.18077032]
[1744349532995,15.962617,1547.6,1547.2,6.46326]
[1744349533168,15.962617,1547.6,1547.3,0.18077032]
[1744349533500,22.424487,1547.6,1547.3,0.18077032]
[1744349533661,2.2424487,1547.5,1547.3,0.18077032]
[1744349535604,8.7044887,1547.5,1547.3,0.18077032]
[1744349536664,2.2424487,1547.5,1547.3,6.64363032]
[1744349536901,7.4604,1547.6,1547.3,7.42033032]
[1744349537099,7.4604,1547.6,1547.4,6.46235]
[1744349537399,6.709,1547.6,1547.5,6.46203]
[1744349537604,6.709,1547.6,1547.5,0.18016272]
[1744349538483,6.709,1547.6,1547.4,6.4623]
[1744349538804,6.709,1547.6,1547.5,0.18013617]
[1744349539165,6.709,1547.6,1547.4,12.92459]
[1744349539461,6.709,1547.6,1547.5,0.18013617]
[1744349539905,14.59291,1547.6,1547.5,0.18013617]
[1744349540265,14.59291,1547.6,1547.2,12.92633]
[1744349540461,14.59291,1547.6,1547.3,0.18071721]
[1744349540878,7.3799,1547.6,1547.4,7.23895]
[1744349541106,6.709,1547.6,1547.5,0.18016272]
[1744349543712,13.17061,1547.6,1547.5,0.18016272]
[1744349543914,13.17061,1547.6,1547.3,6.46286]
[1744349544118,13.17061,1547.6,1547.5,0.18016272]
[1744349544411,13.17061,1547.6,1547.4,0.18043995]
[1744349544615,13.17061,1547.6,1547.5,0.18016272]
[1744349544812,15.133793,1547.6,1547.5,0.18016272]
[1744349544977,15.133793,1547.6,1547.3,6.46286]
[1744349545178,15.133793,1547.6,1547.5,0.18016272]
[1744349545383,6.46203,1547.5,1547.4,0.18043995]
[1744349545578,7.21343,1547.5,1547.1,14.04079312]
[1744349545781,2.9861223,1547.5,1547.1,1.11355312]
[1744349546078,6.46308,1547.3,1547.0,7.24079]
[1744349546704,0.8266,1547.2,1547.0,6.46409]
[1744349547478,0.8266,1547.2,1546.9,12.92878]
[1744349547704,0.8266,1547.2,1546.9,6.46439]
[1744349547926,2.201883,1547.2,1546.9,12.92879]
[1744349548081,2.201883,1547.2,1546.9,12.92874]
[1744349548279,2.201883,1547.2,1546.9,6.46435]
[1744349548483,2.201883,1547.2,1546.9,13.26564435]
[1744349549117,2.201883,1547.2,1546.9,6.80124435]
[1744349549320,2.201883,1547.2,1546.9,13.26560435]
[1744349549523,2.201883,1547.2,1547.0,0.60068342]
[1744349549882,2.201883,1547.2,1546.9,6.80124435]
[1744349550083,0.8266,1547.2,1547.0,6.46406]
[1744349550282,7.28968,1547.3,1547.0,6.46406]
[1744349550524,7.28949,1547.3,1546.9,13.26587435]
[1744349550907,13.7526,1547.3,1546.9,13.26587435]
[1744349551113,13.7526,1547.3,1547.0,0.60097178]
[1744349551289,15.12786,1547.3,1547.0,0.60097178]
[1744349551506,1.37526,1547.3,1547.0,13.52891178]
[1744349551710,7.28963,1547.3,1547.0,6.46397]
[1744349552837,7.28963,1547.3,1546.9,6.46448]
[1744349553039,6.46344,1547.2,1546.9,6.46448]
[1744349553241,6.46344,1547.2,1546.8,7.24076]
[1744349553242,12.92691,1547.2,1547.0,0.60137108]
[1744349553424,1.292691,1547.1,1547.0,0.60137108]
[1744349553634,6.629,1547.2,1546.9,7.24056]
[1744349553801,6.629,1547.2,1547.0,0.60137108]
[1744349554008,13.09229,1547.2,1547.0,0.60137108]
[1744349554208,13.09229,1547.2,1547.0,0.68550538]
[1744349554408,8.667181,1547.2,1547.0,0.68550538]
[1744349554702,8.667181,1547.2,1547.0,0.0841343]
[1744349554906,8.667181,1547.2,1546.9,7.24054]
[1744349555140,15.130611,1547.2,1546.9,7.24054]
[1744349555342,6.46373,1547.1,1546.8,7.2411]
[1744349555543,8.6231641,1547.1,1546.8,7.2411]
[1744349555743,7.29092,1547.0,1546.6,7.57888043]
[1744349556039,7.29092,1547.0,1546.6,6.46577]
[1744349556040,6.46472,1546.9,1546.6,6.46577]
[1744349556241,12.9296,1546.9,1546.7,0.18298861]
[1744349556405,12.9296,1546.9,1546.5,6.46612]
[1744349556406,14.30522,1546.9,1546.5,6.46612]
[1744349556604,14.30522,1546.9,1546.6,0.18326615]
[1744349557006,6.46502,1546.8,1546.7,0.60212996]
[1744349557250,6.46502,1546.8,1546.7,0.78511857]
[1744349557410,7.29162,1546.8,1546.7,0.78511857]
[1744349557609,22.51160788,1546.8,1546.7,0.18298861]
[1744349557825,7.29242,1546.6,1546.2,6.8632174]
[1744349558143,7.29242,1546.6,1546.3,0.78648678]
[1744349558328,6.4654,1546.7,1546.4,0.7762]
[1744349558646,6.4654,1546.7,1546.5,0.18370312]
[1744349558845,8.7200668,1546.7,1546.5,0.18370312]
[1744349559055,15.1856868,1546.7,1546.5,0.18370312]
[1744349559348,6.46579,1546.6,1546.5,0.18370312]
[1744349559708,12.93302,1546.5,1546.2,0.3957674]
[1744349560106,6.46673,1546.4,1546.2,0.3957674]
[1744349560333,6.46651,1546.5,1546.2,0.3957674]
[1744349560524,7.29243,1546.6,1546.2,7.6390874]
[1744349560730,8.89368268,1546.6,1546.2,14.1064374]
[1744349560933,15.35972268,1546.6,1546.2,7.6390874]
[1744349561552,6.46624,1546.5,1546.2,7.6390874]
[1744349561753,8.89368268,1546.6,1546.2,14.1064374]
[1744349561927,2.42785268,1546.6,1546.3,6.46698]
[1744349562248,7.4441,1546.7,1546.3,6.46688]
[1744349562450,7.4441,1546.7,1546.4,6.46646]
[1744349562614,13.90949,1546.7,1546.4,6.46646]
[1744349563248,20.37511,1546.7,1546.3,6.46688]
[1744349563553,13.90949,1546.7,1546.3,6.46688]
[1744349563849,22.412571,1546.7,1546.3,6.46681]
[1744349564055,15.946941,1546.7,1546.3,6.46681]
[1744349565061,6.46594,1546.6,1546.2,7.6393874]
[1744349565359,6.46594,1546.6,1546.2,14.1066674]
[1744349566056,7.27905,1546.6,1546.2,6.8630374]
[1744349566240,8.668451,1546.7,1546.2,6.8630374]
[1744349566241,15.134191,1546.7,1546.3,7.28887]
[1744349566667,6.46583,1546.6,1546.3,7.28887]
[1744349567698,6.46583,1546.6,1546.3,0.822]
[1744349568396,6.631,1546.7,1546.4,6.46647]
[1744349568891,6.46593,1546.6,1546.3,7.28898]
[1744349569057,8.422163,1546.6,1546.3,7.28898]
[1744349569689,1.956233,1546.6,1546.3,13.75583]
[1744349569894,13.0964,1546.7,1546.3,7.28885]
[1744349570715,13.0964,1546.7,1546.4,6.46655]
[1744349571156,19.56204,1546.7,1546.3,7.28885]
[1744349571356,19.56204,1546.7,1546.5,0.1875356]
[1744349571557,21.599554,1546.7,1546.4,0.18781323]
[1744349571758,21.599554,1546.7,1546.6,0.187258]
[1744349571959,21.599554,1546.7,1546.5,0.1875356]
[1744349572294,21.599554,1546.7,1546.6,0.18694458]
[1744349572484,21.599554,1546.7,1546.3,7.28885]
[1744349572682,21.599554,1546.7,1546.4,0.18749982]
[1744349572897,21.599554,1546.7,1546.3,13.75569]
[1744349573100,21.599554,1546.7,1546.4,0.18760621]
[1744349573299,13.0964,1546.7,1546.4,6.4666]
[1744349573598,13.0964,1546.7,1546.5,0.18732857]
[1744349573800,19.56198,1546.7,1546.5,0.18732857]
[1744349574314,19.56198,1546.7,1546.3,7.28884]
[1744349574489,21.599488,1546.7,1546.6,0.18694458]
[1744349574688,21.599488,1546.7,1546.3,7.28884]
[1744349575008,6.46579,1546.6,1546.4,0.18749982]
[1744349575508,12.93181,1546.6,1546.3,0.822]
[1744349575708,12.93181,1546.6,1546.4,0.18749982]
[1744349576012,6.46579,1546.6,1546.3,0.822]
[1744349576175,6.46579,1546.6,1546.5,0.18722218]
[1744349576516,8.6257648,1546.6,1546.5,0.18722218]
[1744349576813,8.6257648,1546.6,1546.3,0.822]
[1744349577110,8.6257648,1546.6,1546.4,0.18749982]
[1744349577276,8.6257648,1546.6,1546.3,7.28904]
[1744349577481,8.6257648,1546.6,1546.4,0.18749982]
[1744349577704,2.1599748,1546.6,1546.4,6.46662]
[1744349577924,19.562,1546.7,1546.5,0.18722218]
[1744349578221,6.631,1546.7,1546.5,0.18722218]
[1744349578403,7.27819,1546.8,1546.5,0.18722218]
[1744349578737,0.33657637,1547.1,1546.6,0.8121]
[1744349578886,12.92953,1546.9,1546.5,7.46545218]
[1744349579292,12.93042,1546.8,1546.5,0.99932218]
[1744349579491,12.93042,1546.8,1546.5,0.18722218]
[1744349579492,7.24632,1546.7,1546.5,0.18722218]
[1744349580129,6.46542,1546.7,1546.5,0.18722218]
[1744349580289,6.4646,1546.9,1546.6,7.27769]
[1744349580623,6.4646,1546.9,1546.7,0.18565674]
[1744349580822,7.835565,1546.9,1546.7,0.18565674]
[1744349581025,12.93011,1546.8,1546.5,7.27827]
[1744349581187,12.93012,1546.8,1546.5,7.27827]
[1744349581388,13.71102,1546.8,1546.6,0.18593424]
[1744349581608,6.46537,1546.7,1546.6,0.18593424]
[1744349581818,6.46537,1546.7,1546.4,7.27831]
[1744349582031,7.24585,1546.8,1546.6,0.18604057]
[1744349582205,7.24585,1546.8,1546.5,6.65205536]
[1744349582406,7.24585,1546.8,1546.7,0.18525715]
[1744349583036,0.7809,1546.8,1546.5,12.93238]
[1744349583207,0.7809,1546.8,1546.7,0.18496476]
[1744349583406,0.7809,1546.8,1546.6,0.18524225]
[1744349583608,0.7809,1546.8,1546.7,0.18507108]
[1744349583907,0.7809,1546.8,1546.5,12.93238]
[1744349583908,7.24585,1546.8,1546.5,6.46619]
[1744349584085,7.24585,1546.8,1546.6,0.18540174]
[1744349584292,6.46495,1546.8,1546.6,0.18540174]
[1744349585193,6.46537,1546.7,1546.4,7.27871]
[1744349585617,6.46537,1546.7,1546.4,13.74514]
[1744349585944,7.24627,1546.7,1546.5,0.60300956]
[1744349586129,8.617392,1546.7,1546.5,0.78868883]
[1744349586328,6.46579,1546.6,1546.5,0.78868883]
[1744349586564,6.46537,1546.7,1546.5,0.78868883]
[1744349586748,6.46537,1546.7,1546.5,0.18567927]
[1744349587337,6.46457,1546.9,1546.5,13.92996927]
[1744349587533,1.370968,1546.9,1546.5,7.46379927]
[1744349587738,6.4654,1546.7,1546.5,0.18567927]
[1744349588452,12.93103,1546.7,1546.5,0.18567927]
[1744349588650,6.46579,1546.6,1546.5,0.18567927]
[1744349588957,12.93179,1546.6,1546.3,0.8121]
[1744349589161,7.24751,1546.5,1546.2,0.3957674]
[1744349589532,7.24751,1546.5,1546.3,0.60361747]
[1744349590130,6.46705,1546.3,1546.2,0.3957674]
[1744349590326,7.24795,1546.3,1546.2,0.3957674]
[1744349590729,16.88095,1546.3,1546.2,0.3957674]
[1744349590941,19.831724,1546.3,1546.2,0.3957674]
[1744349592521,6.633,1546.3,1546.2,0.3957674]
[1744349592864,16.87425,1546.3,1546.2,0.3957674]
[1744349593425,20.30456988,1546.3,1546.2,0.3957674]
[1744349595162,16.87425,1546.3,1546.2,0.3957674]
[1744349595832,10.24125,1546.3,1546.2,0.3957674]
[1744349596034,12.528054,1546.3,1546.2,0.3957674]
[1744349596339,12.528054,1546.3,1546.2,0.58188009]
[1744349596636,5.286804,1546.3,1546.2,0.58188009]
[1744349596837,12.62679,1546.4,1546.2,0.58188009]
[1744349597037,69.322,1546.6,1546.2,7.6233474]
[1744349597250,6.46642,1546.5,1546.3,0.187319]
[1744349597433,6.46663,1546.4,1546.3,0.187319]
[1744349598484,6.46639,1546.5,1546.3,0.187319]
[1744349599977,6.46583,1546.6,1546.3,0.187319]
[1744349600149,13.39916,1546.8,1546.4,13.69315]
[1744349600345,19.56441,1546.9,1546.5,6.46606]
[1744349600545,19.56441,1546.9,1546.5,6.6522662]
[1744349600747,13.09961,1546.9,1546.5,13.1183162]
[1744349600975,13.39839,1547.0,1546.6,6.46559]
[1744349601183,12.62419,1547.0,1546.7,7.22576]